bitfinex/quotes_ETHUSD_20240604
["timestamp","ask_amount","ask_price","bid_price","bid_amount"]
[1717497959274,2.65428,3767.5,3767.1,1.3835133]
[1717497959599,2.65428,3767.5,3767.2,0.92234575]
[1717497959751,2.65428,3767.5,3767.2,0.06546018]
[1717497960152,2.4085,3767.4,3767.2,0.06546018]
[1717497960662,2.65428,3767.5,3767.2,0.06546018]
[1717497961090,3.240958,3767.5,3767.2,0.06546018]
[1717497961304,2.65443,3767.3,3767.0,1.3835133]
[1717497961452,2.4067,3767.0,3766.6,1.3835133]
[1717497961671,0.804,3766.7,3766.3,0.55676877]
[1717497961885,0.804,3766.7,3766.4,0.92256416]
[1717497962116,0.804,3766.7,3766.3,1.38384624]
[1717497962504,0.804,3766.7,3766.4,0.92258842]
[1717497962690,2.65481,3766.8,3766.1,1.94061501]
[1717497963017,3.45881,3766.8,3766.2,0.92258131]
[1717497963218,3.45881,3766.8,3766.3,0.92258131]
[1717497963369,2.65481,3766.8,3766.1,4.59092046]
[1717497963713,3.45881,3766.8,3766.2,0.92257015]
[1717497964286,0.804,3766.4,3766.2,0.92257015]
[1717497964487,0.804,3766.4,3766.0,19.5]
[1717497964802,0.804,3766.2,3766.0,19.5]
[1717497965004,0.804,3766.2,3765.7,0.55676877]
[1717497965319,0.804,3766.2,3765.8,2.30087123]
[1717497965503,0.804,3766.2,3765.8,0.92264504]
[1717497965707,0.804,3766.2,3765.6,1.94073633]
[1717497966001,0.804,3766.4,3765.6,1.94073633]
[1717497966404,0.804,3766.4,3765.7,0.9226695]
[1717497966599,0.804,3766.4,3765.5,12.39034]
[1717497966789,0.804,3766.4,3765.6,2.297818]
[1717497966980,0.804,3766.4,3765.7,0.9227041]
[1717497967398,0.804,3766.4,3765.6,1.37511088]
[1717497968013,2.65504,3766.5,3765.7,0.804]
[1717497968587,2.65504,3766.5,3765.9,0.804]
[1717497968914,2.65504,3766.5,3765.7,0.804]
[1717497969116,2.65504,3766.5,3765.8,3.57291154]
[1717497969280,0.804,3766.8,3765.9,2.4634]
[1717497969723,2.4612,3767.2,3766.3,0.804]
[1717497969923,2.65443,3767.3,3766.5,0.804]
[1717497970080,2.65464,3767.0,3766.1,1.38402481]
[1717497970450,2.65464,3767.0,3766.2,1.52146667]
[1717497970658,0.804,3767.1,3766.3,2.4532]
[1717497971948,5.12518,3766.8,3766.0,9.97532]
[1717497972134,0.804,3766.7,3766.0,9.97532]
[1717497972337,5.01032,3767.2,3766.1,1.238062]
[1717497972646,0.804,3767.1,3766.2,2.3407]
[1717497972846,5.01032,3767.2,3766.2,3.72443086]
[1717497973148,0.804,3767.0,3766.2,2.3407]
[1717497974508,0.804,3766.8,3766.2,2.3407]
[1717497974709,0.804,3766.8,3766.3,1.41939689]
[1717497975254,0.804,3767.1,3766.3,1.41939689]
[1717497976222,2.65452,3767.2,3766.3,4.07448689]
[1717497976434,0.804,3767.0,3766.3,4.07448689]
[1717497979657,3.45852,3767.2,3766.3,4.07448689]
[1717497979861,3.45852,3767.2,3766.4,0.72191869]
[1717497980231,3.45852,3767.2,3766.5,2.4397]
[1717497980449,3.45852,3767.2,3766.5,2.50368869]
[1717497981966,0.804,3767.2,3766.5,2.50368869]
[1717497983939,2.65425,3767.6,3766.6,3.57729048]
[1717497984134,0.804,3767.5,3766.7,0.76068979]
[1717497984354,0.804,3767.5,3766.7,0.82442244]
[1717497985151,0.804,3767.5,3766.8,2.4304]
[1717497985558,0.804,3767.3,3766.9,0.06366971]
[1717497985951,0.804,3767.3,3767.0,0.06366971]
[1717497986476,0.804,3767.3,3767.1,0.06366971]
[1717497986974,0.804,3767.3,3766.7,0.76068979]
[1717497987176,0.804,3767.3,3767.2,0.06366971]
[1717497987480,3.45843,3767.3,3766.6,2.65488]
[1717497987640,0.804,3767.1,3766.6,2.65488]
[1717497988036,0.804,3767.1,3766.6,5.05368]
[1717497989050,0.804,3767.1,3766.7,1.237368]
[1717497989251,0.804,3767.1,3766.4,7.32]
[1717497989458,2.65443,3767.3,3766.4,7.32]
[1717497989459,0.804,3766.9,3766.4,7.32]
[1717497989679,0.804,3766.9,3766.5,0.06369489]
[1717497990244,0.804,3766.7,3766.5,0.06369489]
[1717497991874,0.804,3766.7,3766.0,1.38384727]
[1717497992073,0.804,3766.7,3766.6,0.06369489]
[1717497992261,0.804,3766.7,3766.0,1.38384727]
[1717497992463,0.804,3766.7,3766.6,0.06369489]
[1717497992800,0.804,3766.7,3766.0,1.38384727]
[1717497992948,0.804,3766.7,3766.6,0.06369489]
[1717497993652,0.804,3766.7,3766.0,1.38384727]
[1717497993985,0.804,3766.9,3766.0,3.9033618]
[1717497994185,0.804,3766.9,3766.1,0.92258461]
[1717497994482,0.804,3766.9,3766.1,1.54304827]
[1717497994686,0.804,3766.9,3766.2,0.92258461]
[1717497995090,0.804,3766.9,3766.3,0.06382499]
[1717497995891,0.804,3766.9,3766.0,3.53754596]
[1717497996117,0.804,3766.9,3766.4,0.06382499]
[1717497996251,0.804,3766.9,3766.1,2.31339168]
[1717497996454,0.804,3766.9,3766.5,0.06382499]
[1717497996653,0.804,3766.9,3766.1,8.64919895]
[1717497996949,0.804,3766.9,3766.2,2.30638499]
[1717497997156,2.65464,3767.0,3766.3,2.6551]
[1717497997477,3.45864,3767.0,3766.4,0.92251969]
[1717497998102,3.45864,3767.0,3766.5,0.06386277]
[1717497998392,3.45864,3767.0,3766.3,4.03887954]
[1717497998567,3.45864,3767.0,3766.6,0.06386277]
[1717497999062,3.45864,3767.0,3766.7,0.06386277]
[1717497999390,2.65464,3767.0,3766.3,4.03887954]
[1717497999591,3.45864,3767.0,3766.8,0.06386277]
[1717497999956,3.45864,3767.0,3766.9,0.06385018]
[1717498000358,3.45864,3767.0,3766.3,3.21186877]
[1717498000572,3.45864,3767.0,3766.9,0.06385018]
[1717498000773,3.45864,3767.0,3766.3,2.6551]
[1717498001099,3.45864,3767.0,3766.4,0.92254753]
[1717498001272,3.45864,3767.0,3766.4,0.98639771]
[1717498001596,3.45864,3767.0,3766.5,0.92254753]
[1717498002056,3.45864,3767.0,3766.6,0.06385018]
[1717498002256,3.45864,3767.0,3766.4,1.38377954]
[1717498002469,3.45864,3767.0,3766.7,0.06385018]
[1717498002673,3.45864,3767.0,3766.4,1.38377954]
[1717498002894,3.45864,3767.0,3766.8,0.06385018]
[1717498003101,3.45864,3767.0,3766.4,1.38377954]
[1717498003401,3.45864,3767.0,3766.9,0.06385018]
[1717498004200,3.45864,3767.0,3766.5,1.38377954]
[1717498004405,3.45864,3767.0,3766.9,0.06385018]
[1717498004554,3.45864,3767.0,3766.5,1.38377954]
[1717498004754,3.45864,3767.0,3766.6,0.92250691]
[1717498004989,3.45864,3767.0,3766.6,0.92383691]
[1717498005155,3.45864,3767.0,3766.7,0.06385018]
[1717498006869,2.4284,3766.9,3766.7,0.06385018]
[1717498007205,3.2324,3766.9,3766.7,0.06385018]
[1717498007657,0.804,3766.9,3766.7,0.06385018]
[1717498009457,2.3657,3766.8,3766.7,0.06385018]
[1717498013918,0.804,3766.9,3766.7,0.06385018]
[1717498014084,1.37782575,3766.9,3766.7,0.06385018]
[1717498015109,0.804,3766.9,3766.7,0.06385018]
[1717498015411,1.37779991,3766.9,3766.7,0.06385018]
[1717498015611,0.804,3766.9,3766.7,0.06385018]
[1717498015910,2.65464,3767.0,3766.8,2.3063599]
[1717498016205,2.65464,3767.0,3766.9,0.92254396]
[1717498016406,2.65464,3767.0,3766.9,0.06384598]
[1717498016599,0.804,3767.1,3766.9,0.06384598]
[1717498016768,0.804,3767.1,3766.6,2.82439877]
[1717498016974,0.804,3767.1,3767.0,0.06384598]
[1717498017216,0.804,3767.1,3766.8,1.38373498]
[1717498017512,0.804,3767.1,3767.0,0.06384598]
[1717498017668,0.804,3767.1,3766.7,1.38370515]
[1717498017865,0.804,3767.1,3767.0,0.06384598]
[1717498018067,0.804,3767.1,3766.6,2.82439877]
[1717498018306,0.57375484,3767.3,3767.0,0.06384598]
[1717498018497,0.804,3767.1,3766.8,1.38374176]
[1717498018787,0.804,3767.1,3766.9,0.922475]
[1717498019028,0.804,3767.1,3766.7,1.38370561]
[1717498019189,0.804,3767.1,3766.8,0.92250359]
[1717498019403,0.804,3767.1,3766.6,0.00133]
[1717498019404,0.804,3766.9,3766.6,0.00133]
[1717498019637,0.804,3766.8,3766.7,2.30630732]
[1717498019801,0.804,3766.8,3766.7,2.37004418]
[1717498020002,0.804,3766.8,3766.7,0.98626165]
[1717498021630,2.65456,3767.2,3766.7,0.98626165]
[1717498021818,0.804,3766.9,3766.7,0.06373686]
[1717498023991,0.57378415,3767.1,3766.7,0.06373686]
[1717498024189,1.37778415,3767.1,3766.7,0.06373686]
[1717498024402,1.37778008,3767.1,3766.7,0.06373686]
[1717498025554,1.37777487,3767.1,3766.7,0.06373686]
[1717498025906,1.37777487,3767.1,3766.8,0.92252248]
[1717498026107,1.37777487,3767.1,3766.8,0.06378303]
[1717498026446,1.37777487,3767.1,3766.6,0.00133]
[1717498026447,1.37777487,3767.1,3766.9,0.06366969]
[1717498026749,1.37777487,3767.1,3766.6,0.00133]
[1717498026962,0.57377487,3767.1,3767.0,0.06366969]
[1717498027162,1.37777487,3767.1,3766.6,0.00133]
[1717498027364,1.37777487,3767.1,3767.0,0.06366969]
[1717498027658,1.11269064,3767.1,3767.0,0.06366969]
[1717498027870,1.11269064,3767.1,3766.7,1.38376919]
[1717498028025,1.11269064,3767.1,3767.0,0.06366969]
[1717498028219,1.11269064,3767.1,3766.7,1.38376531]
[1717498028457,1.11269064,3767.1,3766.8,0.98618004]
[1717498028639,1.11269064,3767.1,3766.8,0.06366969]
[1717498029065,1.11269064,3767.1,3766.6,0.00133]
[1717498029066,1.11269064,3767.1,3766.7,1.38376841]
[1717498029267,1.11269064,3767.1,3766.9,0.06366969]
[1717498029471,1.11269064,3767.1,3766.7,1.38376859]
[1717498029653,1.11269064,3767.1,3767.0,0.06366969]
[1717498029859,0.30869064,3767.1,3766.7,1.38376749]
[1717498030042,1.11269064,3767.1,3767.0,0.06366969]
[1717498030365,1.11269064,3767.1,3766.6,0.55809877]
[1717498030526,1.11269064,3767.1,3767.0,0.06366969]
[1717498030728,1.11269064,3767.1,3766.6,0.55809877]
[1717498030966,1.11269064,3767.1,3767.0,0.06366969]
[1717498031171,1.11269064,3767.1,3766.6,0.00133]
[1717498031473,1.11269064,3767.1,3766.7,2.30631616]
[1717498031655,1.11269064,3767.1,3766.8,0.92252646]
[1717498031854,1.11269064,3767.1,3766.6,0.55809877]
[1717498032060,1.11269064,3767.1,3766.9,0.06366969]
[1717498032370,1.11269064,3767.1,3766.8,1.3837695]
[1717498032574,1.11269064,3767.1,3767.0,0.06366969]
[1717498032754,1.11269064,3767.1,3766.7,1.38376308]
[1717498032942,1.11269064,3767.1,3767.0,0.06366969]
[1717498033143,1.11269064,3767.1,3766.6,0.55809877]
[1717498033456,1.11269064,3767.1,3766.7,2.30627408]
[1717498033769,1.11269064,3767.1,3766.8,2.30627408]
[1717498033940,1.11269064,3767.1,3766.9,0.92250963]
[1717498034144,1.11269064,3767.1,3766.7,0.55676877]
[1717498034359,1.11269064,3767.1,3767.0,0.06366969]
[1717498034565,1.11269064,3767.1,3766.8,1.38374965]
[1717498034768,1.11269064,3767.1,3767.0,0.06366969]
[1717498035263,1.11269064,3767.1,3766.8,1.38374963]
[1717498035575,2.65427,3767.6,3767.0,2.34696969]
[1717498035730,2.65427,3767.6,3767.1,0.92250008]
[1717498035932,2.65427,3767.6,3767.2,2.86293487]
[1717498036278,2.65427,3767.6,3767.3,2.3061661]
[1717498036478,2.65427,3767.6,3767.3,0.06366969]
[1717498036646,2.65427,3767.6,3767.1,0.55676877]
[1717498036864,2.65427,3767.6,3767.4,0.06366969]
[1717498037046,2.65427,3767.6,3767.1,1.24069898]
[1717498037047,2.65427,3767.6,3767.1,0.55676877]
[1717498037247,2.65427,3767.6,3767.5,0.06351861]
[1717498037476,0.804,3767.9,3767.5,2.3643]
[1717498037795,0.804,3767.9,3767.5,2.42781861]
[1717498039404,0.804,3767.9,3767.5,2.86462569]
[1717498040592,0.804,3767.9,3767.5,2.42781861]
[1717498040892,0.804,3767.9,3767.5,0.06351861]
[1717498041088,0.804,3767.9,3767.3,1.38348703]
[1717498041265,0.804,3767.9,3767.6,0.0634221]
[1717498041448,0.804,3767.9,3767.2,3.72948703]
[1717498041648,0.804,3767.9,3767.7,0.0634221]
[1717498041902,0.804,3767.9,3767.2,2.346]
[1717498042063,0.804,3767.9,3767.8,0.0634221]
[1717498042274,0.804,3767.9,3767.2,2.346]
[1717498042475,0.804,3767.9,3767.8,0.0634221]
[1717498042677,0.804,3767.9,3767.2,2.346]
[1717498042863,0.804,3767.9,3767.8,0.0634221]
[1717498043069,0.804,3767.9,3767.3,2.69592799]
[1717498043293,0.804,3767.9,3767.8,0.0634221]
[1717498043535,0.804,3767.9,3767.3,1.312449]
[1717498043732,2.65371,3768.4,3767.8,0.0634221]
[1717498043886,0.804,3768.1,3767.4,2.6543]
[1717498044081,0.804,3768.1,3767.9,0.06334658]
[1717498044311,0.804,3768.1,3767.4,2.6543]
[1717498044481,0.804,3768.1,3768.0,0.06334658]
[1717498044795,0.804,3768.1,3767.4,2.6543]
[1717498044996,0.804,3768.1,3768.0,0.06334658]
[1717498045191,0.804,3768.1,3767.5,0.90569968]
[1717498045431,0.804,3768.1,3768.0,0.06334658]
[1717498045591,2.65371,3768.4,3767.5,0.90569968]
[1717498045923,0.804,3768.1,3767.5,0.90569968]
[1717498046218,0.804,3768.1,3767.6,0.68893935]
[1717498047526,2.65371,3768.4,3767.6,0.68893935]
[1717498047826,0.804,3768.1,3767.7,2.4226]
[1717498048183,0.804,3768.1,3767.8,0.06279701]
[1717498048614,0.804,3768.1,3767.7,2.4226]
[1717498048816,0.804,3768.1,3767.9,0.06279701]
[1717498049022,0.804,3768.1,3767.8,0.30481928]
[1717498049206,0.804,3768.1,3768.0,0.06279701]
[1717498049711,0.804,3768.1,3767.8,0.30481928]
[1717498050023,0.804,3768.1,3768.0,0.06279701]
[1717498050182,0.804,3768.1,3767.8,0.30481928]
[1717498050494,2.65371,3768.4,3767.8,0.30481928]
[1717498050706,0.804,3768.3,3767.9,0.06279701]
[1717498054614,0.804,3768.3,3767.7,2.4226]
[1717498054930,0.804,3768.3,3767.7,3.72484928]
[1717498055224,0.804,3768.3,3767.8,0.06279701]
[1717498055626,0.804,3768.3,3767.7,3.72484928]
[1717498055841,0.804,3768.3,3767.9,0.06279701]
[1717498056023,0.804,3768.3,3767.7,2.4226]
[1717498056225,0.804,3768.3,3768.0,0.06279701]
[1717498056546,0.804,3768.3,3768.1,0.06279701]
[1717498056702,2.65371,3768.4,3768.1,0.06279701]
[1717498056896,0.804,3768.3,3767.7,2.4226]
[1717498057101,0.804,3768.3,3768.2,0.06279701]
[1717498057397,2.65371,3768.4,3767.7,2.4226]
[1717498057601,2.65371,3768.4,3768.2,0.06279701]
[1717498058043,2.65371,3768.4,3767.7,2.4226]
[1717498058446,2.65371,3768.4,3767.8,0.06286834]
[1717498058927,3.45771,3768.4,3767.8,0.06286834]
[1717498062517,2.65371,3768.4,3767.8,0.06286834]
[1717498062717,3.45771,3768.4,3767.8,0.31141517]
[1717498063557,2.65371,3768.4,3767.8,0.31141517]
[1717498063759,3.45771,3768.4,3767.8,0.31141517]
[1717498063917,2.65371,3768.4,3767.8,0.31141517]
[1717498064256,3.45771,3768.4,3767.8,0.31141517]
[1717498064756,2.6533,3768.9,3768.0,2.3977]
[1717498064980,2.65351,3768.6,3768.0,2.3977]
[1717498065275,2.65351,3768.6,3768.1,0.06294804]
[1717498066045,2.65374,3768.3,3768.1,0.06294804]
[1717498066242,2.65374,3768.3,3767.7,2.4221]
[1717498066243,2.65374,3768.3,3767.7,3.2261]
[1717498066417,2.65374,3768.3,3767.8,0.32261]
[1717498066621,2.65374,3768.3,3767.8,0.38557482]
[1717498068519,2.65393,3768.0,3767.8,0.38557482]
[1717498073127,2.65393,3768.0,3767.8,0.06296482]
[1717498073333,2.65393,3768.0,3767.5,4.68110093]
[1717498073536,2.65393,3768.0,3767.9,0.06275508]
[1717498073828,2.65393,3768.0,3767.5,4.68110093]
[1717498074032,2.65393,3768.0,3767.9,0.06275508]
[1717498074187,2.65393,3768.0,3767.5,4.68110093]
[1717498074388,2.65393,3768.0,3767.9,0.06275508]
[1717498074625,2.65393,3768.0,3767.6,1.25578697]
[1717498074818,2.65393,3768.0,3767.9,0.06275508]
[1717498075284,2.65393,3768.0,3767.6,1.25578697]
[1717498075485,2.65393,3768.0,3767.9,0.06275508]
[1717498075697,2.65393,3768.0,3767.6,1.25578697]
[1717498075928,2.65393,3768.0,3767.9,0.06275508]
[1717498076147,2.65393,3768.0,3767.7,1.1873587]
[1717498076291,2.65393,3768.0,3767.9,0.06275508]
[1717498076491,2.65393,3768.0,3767.7,1.1873587]
[1717498076733,2.65393,3768.0,3767.9,0.06275508]
[1717498076886,2.65393,3768.0,3767.7,1.1873587]
[1717498077087,2.65393,3768.0,3767.9,0.06275508]
[1717498077287,2.65393,3768.0,3767.7,1.1873587]
[1717498077516,2.65393,3768.0,3767.9,0.06277605]
[1717498077828,2.65393,3768.0,3767.7,1.1873587]
[1717498078026,2.65393,3768.0,3767.9,0.06277605]
[1717498078220,2.65393,3768.0,3767.7,1.1873587]
[1717498078732,2.65393,3768.0,3767.8,0.06277605]
[1717498078890,2.65393,3768.0,3767.7,1.1873587]
[1717498078891,2.65393,3768.0,3767.5,1.38333011]
[1717498079221,2.65393,3768.0,3767.9,0.06277605]
[1717498079429,2.65393,3768.0,3767.4,2.74409888]
[1717498079628,2.65393,3768.0,3767.9,0.06277605]
[1717498080244,2.65393,3768.0,3767.5,1.38334718]
[1717498080409,2.65393,3768.0,3767.9,0.06277605]
[1717498080583,2.65413,3767.7,3767.3,1.94011595]
[1717498080918,2.65413,3767.7,3767.4,0.92228551]
[1717498081089,2.65413,3767.7,3767.2,4.42311595]
[1717498081090,2.65413,3767.7,3767.3,1.38334718]
[1717498081290,2.65413,3767.7,3767.4,0.92230278]
[1717498081514,2.65413,3767.7,3767.3,1.38334718]
[1717498081905,2.65413,3767.7,3767.4,0.92230368]
[1717498082099,2.65413,3767.7,3767.3,1.38334718]
[1717498082300,2.65413,3767.7,3767.4,2.30565085]
[1717498082505,2.65413,3767.7,3767.5,0.92230367]
[1717498082696,2.65413,3767.7,3767.4,1.38334718]
[1717498082933,4.97593,3767.7,3767.3,1.38334718]
[1717498083232,4.97593,3767.7,3767.4,2.30565263]
[1717498083462,4.97593,3767.7,3767.3,1.38334718]
[1717498083642,4.97593,3767.7,3767.4,2.30565433]
[1717498083828,4.97593,3767.7,3767.3,1.38334718]
[1717498084039,4.97593,3767.7,3767.4,2.30565438]
[1717498084279,4.97593,3767.7,3767.3,1.38334718]
[1717498084477,4.97593,3767.7,3767.4,2.30565459]
[1717498084681,2.65413,3767.7,3767.5,0.92230741]
[1717498084964,2.65413,3767.7,3767.4,1.38334718]
[1717498085162,2.65413,3767.7,3767.5,0.92230493]
[1717498085376,2.65413,3767.7,3767.4,1.38334718]
[1717498085515,2.65413,3767.7,3767.5,0.92230184]
[1717498085871,2.65413,3767.7,3767.4,1.38334718]
[1717498086021,2.65413,3767.7,3767.5,0.92230119]
[1717498086221,2.65413,3767.7,3767.4,1.38334718]
[1717498086579,2.65413,3767.7,3767.5,0.92230116]
[1717498086879,2.65413,3767.7,3767.4,1.38334718]
[1717498087171,2.65413,3767.7,3767.5,0.9222996]
[1717498087324,2.65413,3767.7,3767.4,1.38334718]
[1717498087522,2.65413,3767.7,3767.5,0.92229982]
[1717498087723,2.65413,3767.7,3767.4,1.38334718]
[1717498087951,2.65413,3767.7,3767.5,0.92229931]
[1717498088301,2.65413,3767.7,3767.4,1.38334718]
[1717498088441,2.65413,3767.7,3767.5,0.92229966]
[1717498088976,2.65413,3767.7,3767.4,1.38345893]
[1717498089173,2.65413,3767.7,3767.5,0.9223074]
[1717498089323,2.65413,3767.7,3767.4,1.38346111]
[1717498089677,2.65413,3767.7,3767.2,0.55676877]
[1717498089969,2.65413,3767.7,3767.3,2.30584201]
[1717498090135,2.65413,3767.7,3767.4,2.30583436]
[1717498090341,2.65413,3767.7,3767.3,1.38349756]
[1717498090541,2.65413,3767.7,3767.4,0.92234066]
[1717498090861,2.65413,3767.7,3767.3,1.38350198]
[1717498091065,0.804,3767.8,3767.1,1.38350198]
[1717498091066,2.65434,3767.5,3767.1,1.38350198]
[1717498091364,2.65434,3767.5,3767.2,2.30587036]
[1717498091566,2.65434,3767.5,3767.1,1.38357005]
[1717498091735,2.65449,3767.2,3767.1,1.38358186]
[1717498092064,3.45849,3767.2,3766.8,1.38358657]
[1717498092263,3.45849,3767.2,3766.6,7.32133]
[1717498092566,3.45849,3767.2,3766.7,0.92249905]
[1717498093345,3.45849,3767.2,3766.6,7.32133]
[1717498094771,3.45849,3767.2,3766.7,0.06294385]
[1717498095499,2.812734,3767.5,3766.7,0.06294385]
[1717498095500,0.804,3766.8,3766.7,0.06294385]
[1717498096251,2.65471,3766.9,3766.7,0.06294385]
[1717498096861,5.00901,3766.9,3766.7,0.06294385]
[1717498097580,2.65471,3766.9,3766.7,0.06294385]
[1717498100579,0.804,3767.2,3766.7,0.06294385]
[1717498100777,0.804,3767.2,3766.7,0.31354124]
[1717498101698,2.65446,3767.3,3766.7,0.31354124]
[1717498102114,2.65446,3767.3,3766.8,2.2522]
[1717498102304,2.65446,3767.3,3766.8,2.31562632]
[1717498102481,0.804,3767.7,3766.8,4.97038632]
[1717498102681,0.804,3767.7,3766.9,0.60263137]
[1717498102920,0.804,3767.7,3767.0,0.06354382]
[1717498105025,5.01943,3767.8,3767.0,0.06354382]
[1717498105224,0.804,3767.7,3767.0,0.06354382]
[1717498110157,3.45813,3767.8,3767.1,2.3435]
[1717498110461,3.45813,3767.8,3767.2,0.30096752]
[1717498110604,3.45813,3767.8,3767.2,0.36451134]
[1717498114376,2.65413,3767.8,3767.2,0.36451134]
[1717498114583,0.804,3767.7,3767.2,0.36451134]
[1717498115379,2.65413,3767.8,3767.2,0.36451134]
[1717498115583,0.804,3767.7,3767.2,0.36451134]
[1717498115755,2.65413,3767.8,3767.2,0.36451134]
[1717498115958,0.804,3767.7,3767.2,0.36451134]
[1717498117406,2.65413,3767.8,3767.2,0.36451134]
[1717498117547,0.804,3767.7,3767.2,0.36451134]
[1717498117897,3.0709,3767.7,3767.2,0.36451134]
[1717498118104,3.0709,3767.7,3767.2,0.06354382]
[1717498118547,3.0709,3767.7,3767.3,0.06351445]
[1717498118548,2.65421,3767.6,3767.3,0.06351445]
[1717498118684,2.65421,3767.6,3766.9,2.4247]
[1717498118883,2.65421,3767.6,3767.0,0.06351445]
[1717498120028,0.804,3767.5,3767.0,0.06351445]
[1717498125230,0.804,3767.5,3766.8,2.65476]
[1717498125429,0.804,3767.5,3767.1,0.06351445]
[1717498125744,0.804,3767.5,3766.8,4.03835173]
[1717498126052,0.804,3767.5,3767.2,0.06351445]
[1717498126254,0.804,3767.5,3766.8,4.03835173]
[1717498126409,0.804,3767.5,3767.3,0.06351445]
[1717498126609,0.804,3767.5,3766.8,4.03835173]
[1717498126825,0.804,3767.5,3767.4,0.06351445]
[1717498127123,1.376511,3767.5,3767.4,0.06351445]
[1717498127451,1.376511,3767.5,3766.8,4.03835173]
[1717498127651,0.804,3767.5,3766.8,4.03835173]
[1717498127951,2.65436,3767.4,3766.9,0.98590031]
[1717498128249,0.804,3767.0,3766.9,0.06351445]
[1717498128470,2.65436,3767.4,3766.9,0.06351445]
[1717498128669,0.804,3767.2,3766.6,7.32133]
[1717498128841,0.804,3767.2,3767.0,0.06345987]
[1717498129029,0.804,3767.2,3766.6,0.00133]
[1717498129226,0.804,3767.2,3767.1,0.06345987]
[1717498129470,0.804,3767.2,3766.6,0.00133]
[1717498129628,0.804,3767.2,3767.1,0.06345987]
[1717498129828,0.804,3767.2,3766.6,0.00133]
[1717498130063,0.804,3767.2,3767.1,0.06345987]
[1717498130264,0.804,3767.2,3766.6,0.00133]
[1717498130450,0.804,3767.2,3767.1,0.06345987]
[1717498130657,0.804,3767.2,3766.6,0.00133]
[1717498130975,0.804,3767.2,3766.6,0.923806]
[1717498131133,0.804,3767.2,3766.7,0.06345987]
[1717498132974,2.65436,3767.4,3766.8,0.92243468]
[1717498133376,2.65436,3767.4,3766.9,2.50245987]
[1717498135835,3.45836,3767.4,3766.9,2.50245987]
[1717498136988,2.65436,3767.4,3766.9,2.50245987]
[1717498137190,0.804,3767.6,3766.9,2.50245987]
[1717498137395,0.804,3767.6,3767.0,0.92240926]
[1717498137699,0.804,3767.6,3767.0,0.98593627]
[1717498137902,0.804,3767.6,3767.0,0.06352701]
[1717498138403,2.65413,3767.8,3767.0,0.06352701]
[1717498138550,0.804,3767.7,3767.1,0.7878847]
[1717498138752,0.804,3767.7,3767.1,0.85133617]
[1717498140117,2.65413,3767.8,3767.2,0.92234548]
[1717498140271,3.45813,3767.8,3767.2,0.92234548]
[1717498140457,3.45813,3767.8,3767.3,0.06340951]
[1717498140894,3.45813,3767.8,3767.1,0.7878847]
[1717498141066,3.45813,3767.8,3767.4,0.06340951]
[1717498141272,3.45813,3767.8,3767.1,0.7878847]
[1717498141473,3.45813,3767.8,3767.5,0.06340951]
[1717498141703,3.45813,3767.8,3767.0,1.3835344]
[1717498141922,3.45813,3767.8,3767.6,0.06340951]
[1717498142200,3.45813,3767.8,3767.7,0.06340951]
[1717498142387,3.45813,3767.8,3767.0,1.3835344]
[1717498142694,3.45813,3767.8,3767.7,0.06340951]
[1717498142899,3.45813,3767.8,3767.0,1.3835344]
[1717498143103,3.45813,3767.8,3767.7,0.06340951]
[1717498143270,3.45813,3767.8,3767.1,1.3835344]
[1717498143655,3.45813,3767.8,3767.2,0.92234959]
[1717498143810,3.45813,3767.8,3767.2,0.9857591]
[1717498143962,3.45813,3767.8,3767.2,0.94350684]
[1717498144575,0.804,3767.6,3767.2,0.06340951]
[1717498144779,0.804,3767.4,3767.2,0.06340951]
[1717498144998,2.4615,3767.3,3767.2,0.06340951]
[1717498145170,2.4615,3767.3,3766.9,1.3835344]
[1717498145370,0.804,3767.2,3766.8,7.32]
[1717498145679,0.804,3767.2,3766.9,0.92246674]
[1717498146007,0.804,3767.2,3766.9,1.38367843]
[1717498146304,0.804,3767.2,3767.0,0.92245409]
[1717498146503,0.804,3767.2,3766.9,1.38367843]
[1717498146805,0.804,3767.2,3767.0,0.92245188]
[1717498147007,0.804,3767.2,3766.7,0.55676877]
[1717498147215,0.804,3767.2,3766.8,2.30617972]
[1717498147406,0.804,3767.2,3766.9,0.92247189]
[1717498147775,0.804,3767.2,3766.8,1.38371888]
[1717498147976,0.804,3767.2,3766.9,0.92247943]
[1717498148180,0.804,3767.2,3766.8,1.38370683]
[1717498148376,0.804,3767.2,3766.9,0.92247766]
[1717498148711,0.804,3767.2,3766.8,1.38371634]
[1717498148887,0.804,3767.2,3766.9,0.92247764]
[1717498149089,0.804,3767.2,3766.8,1.38372724]
[1717498149273,0.804,3767.2,3766.9,0.92248496]
[1717498149605,0.804,3767.2,3766.7,0.55676877]
[1717498149808,0.804,3767.2,3766.8,2.30619617]
[1717498150009,0.804,3767.2,3766.9,0.92247847]
[1717498150215,0.804,3767.2,3766.8,1.38370835]
[1717498150410,0.804,3767.2,3766.9,0.92247265]
[1717498150614,0.804,3767.2,3766.8,1.3837131]
[1717498150813,2.4615,3767.3,3766.9,0.92247606]
[1717498151021,3.2655,3767.3,3766.8,1.383714]
[1717498151182,3.2655,3767.3,3766.9,0.9224791]
[1717498151383,3.2655,3767.3,3766.8,1.383714]
[1717498151711,3.2655,3767.3,3766.6,0.55809877]
[1717498151712,3.2655,3767.3,3766.9,0.92248734]
[1717498151879,3.2655,3767.3,3766.8,1.383714]
[1717498152083,3.2655,3767.3,3766.9,0.9224823]
[1717498152421,0.804,3767.1,3766.6,1.385044]
[1717498152626,0.804,3767.1,3766.6,0.00133]
[1717498152925,0.804,3767.1,3766.7,0.92252799]
[1717498153082,0.804,3767.1,3766.6,0.00133]
[1717498153283,0.804,3767.1,3766.7,0.92252716]
[1717498153492,0.804,3767.1,3766.6,0.00133]
[1717498153720,0.804,3767.1,3766.7,0.92252186]